bitfinex/quotes_ETHUSD_20251012
["timestamp","ask_amount","ask_price","bid_price","bid_amount"]
[1760310917592,2.41990126,4132.4,4132.1,0.005]
[1760310917992,2.87877229,4132.3,4132.1,0.005]
[1760310918215,4.34001839,4132.2,4132.1,0.005]
[1760310918415,3.35870023,4132.2,4132.1,0.005]
[1760310918797,0.93868184,4132.2,4132.1,0.005]
[1760310919212,4.79881839,4132.2,4132.1,0.005]
[1760310919731,1.92,4132.2,4132.1,0.005]
[1760310920426,4.79881839,4132.2,4132.1,0.005]
[1760310920937,2.3788,4132.2,4132.1,0.005]
[1760310921094,4.79881839,4132.2,4132.1,0.005]
[1760310922142,5.52069073,4132.2,4132.1,0.005]
[1760310922732,8.18256573,4132.2,4132.1,0.005]
[1760310923430,5.52069073,4132.2,4132.1,0.005]
[1760310923732,1.92,4132.2,4132.1,0.005]
[1760310925723,1.92,4132.2,4132.1,0.1258]
[1760310927907,0.1208,4133.4,4132.1,0.7495]
[1760310928110,2.41937434,4133.3,4132.8,0.1208]
[1760310928516,4.33944546,4133.2,4132.8,0.1208]
[1760310928720,4.33937624,4133.3,4132.8,0.1208]
[1760310928930,2.41928195,4133.5,4132.6,2.41973345]
[1760310928931,2.4193055,4133.5,4132.6,2.41973345]
[1760310929106,0.4588,4133.6,4133.0,0.1208]
[1760310929309,1.92,4133.6,4133.0,0.1208]
[1760310929510,0.001,4134.1,4133.3,0.1208]
[1760310929511,2.41911652,4133.8,4133.3,0.1208]
[1760310929716,0.001,4134.1,4133.2,0.6336]
[1760310929910,7.903604,4133.9,4132.2,0.6336]
[1760310930122,2.41985124,4132.5,4132.1,0.005]
[1760310930324,1.92,4133.0,4132.1,0.005]
[1760310930527,8.59255639,4132.2,4132.1,0.005]
[1760310930744,5.48714497,4132.2,4132.1,0.005]
[1760310931105,5.94594497,4132.2,4132.1,0.005]
[1760310931501,12.73712697,4132.2,4132.1,0.005]
[1760310931703,5.94594497,4132.2,4132.1,0.005]
[1760310931902,20.06551097,4132.2,4132.1,0.005]
[1760310932127,1.92,4132.1,4131.1,0.005]
[1760310932447,1.92,4132.1,4128.5,0.002]
[1760310932448,1.92,4130.6,4128.5,0.002]
[1760310932627,2.42148957,4129.7,4128.5,0.002]
[1760310932941,2.42141704,4129.9,4128.5,0.002]
[1760310933119,2.42143422,4129.8,4128.7,2.4220699]
[1760310933318,2.42143422,4129.8,4128.8,16.92200062]
[1760310933521,2.42136066,4130.0,4128.9,2.42192176]
[1760310933912,2.42136066,4130.0,4128.8,14.5]
[1760310933913,2.42136613,4129.9,4128.8,16.92200603]
[1760310934132,2.6421343,4130.0,4128.8,16.92198485]
[1760310934323,2.88006507,4130.1,4128.8,14.502]
[1760310934324,2.42142055,4129.9,4128.8,14.502]
[1760310935638,2.3788,4130.1,4128.9,2.42195257]
[1760310935852,1.92,4130.7,4129.0,0.4614]
[1760310936056,1.52265418,4130.6,4129.3,0.6336]
[1760310936206,0.72821808,4131.4,4129.5,0.6336]
[1760310936410,0.2294,4131.6,4129.7,0.6336]
[1760310936734,2.42037334,4131.6,4130.5,2.42095962]
[1760310937041,0.005,4131.9,4130.8,2.42080475]
[1760310937241,0.005,4131.9,4130.9,0.6336]
[1760310937450,0.005,4131.9,4131.1,2.4206482]
[1760310938027,2.42519497,4131.9,4130.9,1.095]
[1760310938222,2.42519497,4131.9,4131.0,2.42070628]
[1760310939337,2.42519497,4131.9,4130.5,14.5]
[1760310939338,0.72740663,4131.9,4130.5,14.5]
[1760310939642,2.86625267,4131.8,4130.6,0.6336]
[1760310939864,12.84774182,4131.5,4129.1,2.42183195]
[1760310940150,2.42072137,4131.0,4130.9,0.1208]
[1760310942820,2.42072137,4131.0,4130.1,0.1371]
[1760310943535,4.34066792,4131.1,4130.1,0.1371]
[1760310943740,2.4207687,4131.0,4130.1,2.55833578]
[1760310944037,1.92,4131.1,4130.1,14.6371]
[1760310944348,1.92,4131.1,4129.6,2.42149806]
[1760310944349,2.457464,4130.6,4128.6,0.002]
[1760310944527,2.42149419,4129.7,4128.8,0.4532]
[1760310944726,1.92,4129.5,4128.8,0.002]
[1760310944926,2.40087248,4129.5,4128.8,0.002]
[1760310945128,2.42195257,4128.9,4128.8,0.002]
[1760310945519,22.37053557,4128.9,4128.8,0.002]
[1760310945719,4.80925257,4128.9,4128.8,0.002]
[1760310946058,4.80925257,4128.9,4128.6,0.002]
[1760310946059,2.4220699,4128.7,4128.6,0.002]
[1760310946262,31.43503172,4128.7,4128.6,0.002]
[1760310946564,26.19808856,4128.6,4128.5,1e-08]
[1760310946857,26.19808856,4128.6,4123.7,2.42496029]
[1760310946858,21.85596,4127.9,4123.7,2.42496029]
[1760310947021,4.34295018,4127.2,4125.9,0.4512]
[1760310947350,2.42295018,4127.2,4125.9,14.5]
[1760310947656,2.42295018,4127.2,4125.6,0.1623]
[1760310947657,18.24173071,4127.2,4125.3,0.6135]
[1760310947857,2.42348418,4126.3,4125.3,0.6135]
[1760310948019,1.92,4126.5,4125.1,0.005]
[1760310948351,1.1433,4127.9,4126.3,2.42343224]
[1760310948515,1.92,4127.5,4126.2,0.1471]
[1760310948715,2.42301899,4127.1,4126.1,0.005]
[1760310949042,0.72346518,4127.1,4126.1,0.005]
[1760310949247,2.42312631,4126.9,4126.1,0.005]
[1760310949473,1.92,4126.9,4126.1,0.005]
[1760310949749,1.92,4126.9,4125.1,0.005]
[1760310949750,1.92,4126.3,4125.1,0.005]
[1760310949964,2.42371361,4125.9,4125.1,0.005]
[1760310950133,2.89236236,4126.2,4125.1,0.005]
[1760310950334,0.696,4125.9,4125.1,0.005]
[1760310950545,5.03971361,4125.9,4125.1,0.005]
[1760310951026,1.92,4125.9,4125.1,0.005]
[1760310951220,5.23171361,4125.9,4125.1,0.005]
[1760310952003,2.616,4125.9,4125.1,0.005]
[1760310952259,2.42310181,4127.0,4125.8,0.4542]
[1760310952468,0.4713,4127.3,4125.9,0.6336]
[1760310952671,13.42998053,4127.8,4125.9,0.6336]
[1760310952967,13.42998053,4127.8,4125.8,2.42673862]
[1760310952968,1.53325805,4127.7,4127.0,0.1208]
[1760310953279,0.1208,4127.7,4127.0,0.1208]
[1760310953421,2.0408,4127.7,4127.0,0.1208]
[1760310953747,2.54348887,4127.7,4127.0,0.1208]
[1760310953949,2.42272569,4127.6,4127.0,0.1208]
[1760310954263,2.42272569,4127.6,4126.1,0.002]
[1760310954264,2.42333725,4126.6,4125.3,0.4512]
[1760310954462,0.4713,4126.7,4125.3,0.4512]
[1760310954757,1.92,4126.6,4125.3,0.4512]
[1760310955052,2.4233612,4126.5,4122.5,2.42567999]
[1760310955252,1.92,4123.7,4121.8,0.72892052]
[1760310955456,2.27163732,4123.6,4121.5,0.3286]
[1760310955659,1.53499805,4123.6,4121.5,0.3286]
[1760310955847,0.2247,4124.6,4121.5,0.3286]
[1760310956043,0.3286,4124.7,4121.6,1.6040575]
[1760310956243,2.42448388,4124.6,4123.1,0.6336]
[1760310956544,0.3286,4124.7,4123.3,0.6336]
[1760310956727,2.42424997,4125.0,4123.7,0.6336]
[1760310956930,2.42467575,4124.3,4123.7,0.6336]
[1760310957257,2.42447752,4124.6,4122.8,0.3286]
[1760310957557,2.4250135,4123.7,4122.9,0.6336]
[1760310957772,2.8958363,4124.5,4122.8,0.3286]
[1760310957773,2.42471187,4124.3,4122.8,0.3286]
[1760310957929,2.4248546,4124.0,4122.8,0.3286]
[1760310958455,1.92,4124.1,4122.8,0.3286]
[1760310958622,2.42484177,4124.0,4122.8,0.3286]
[1760310958954,2.42494678,4123.9,4122.8,0.3286]
[1760310959258,0.48160119,4124.2,4122.9,3.05907721]
[1760310959454,0.4713,4124.5,4122.9,3.05907721]
[1760310959865,0.4713,4124.5,4122.9,0.6336]
[1760310960180,2.42495296,4123.8,4122.9,0.6336]
[1760310960683,2.42495037,4123.8,4122.9,3.05906184]
[1760310960979,2.42500304,4123.8,4122.8,0.3286]
[1760310961183,2.64396293,4125.0,4122.8,0.3286]
[1760310961346,2.42871398,4125.9,4121.1,1e-08]
[1760310961347,2.42524989,4123.3,4121.1,1e-08]
[1760310961546,1.92,4123.5,4122.2,0.1815]
[1760310961798,2.4256547,4122.6,4121.5,0.3286]
[1760310961992,2.4251831,4123.4,4121.5,0.3286]
[1760310962153,1.92,4123.7,4121.5,0.3286]
[1760310962484,2.42476352,4124.2,4121.5,0.3286]
[1760310962683,2.42484578,4124.0,4122.8,2.42550552]
[1760310962984,2.42508944,4123.6,4122.6,0.1815]
[1760310963335,2.42508944,4123.6,4122.6,2.60714656]
[1760310963591,2.4251093,4123.6,4122.6,0.1815]
[1760310963799,13.42998053,4123.9,4122.6,0.1815]
[1760310963954,1.92,4123.7,4122.2,0.3286]
[1760310964290,2.42555552,4122.8,4121.8,2.42609894]
[1760310964485,2.42553604,4122.8,4122.7,0.1208]
[1760310964780,4.81683604,4122.8,4122.7,0.1208]
[1760310964979,5.73306148,4122.8,4122.7,0.1208]
[1760310965748,2.83622544,4122.8,4122.7,0.1208]
[1760310965973,1.92,4122.8,4122.7,0.1208]
[1760310966179,1.92,4123.6,4122.2,0.3286]
[1760310966379,2.42524369,4123.3,4122.3,2.42582277]
[1760310966582,1.92,4123.6,4122.2,0.3286]
[1760310966785,2.42524283,4123.3,4122.4,2.4257639]
[1760310967011,2.42524283,4123.3,4122.2,2.75448529]
[1760310967012,3.85571484,4123.6,4122.2,0.3286]
[1760310967283,1.93571484,4123.6,4122.2,0.3286]
[1760310967457,2.42564972,4122.7,4121.7,0.6336]
[1760310967654,2.42564972,4122.7,4121.8,2.42612364]
[1760310967854,2.42565574,4122.6,4121.7,3.05978081]
[1760310968054,2.42565574,4122.6,4121.8,3.05972263]
[1760310968262,2.42570065,4122.6,4121.5,0.3286]
[1760310968584,2.3913,4123.2,4121.9,2.4260141]
[1760310968781,2.42564438,4122.7,4121.6,0.6336]
[1760310968983,1.58212805,4123.1,4121.6,0.6336]
[1760310969186,1.92,4123.0,4121.9,2.42601802]
[1760310969358,2.42547721,4122.9,4121.9,2.42601802]
[1760310969687,2.42547721,4122.9,4121.6,3.0597852]
[1760310969688,2.42552852,4122.9,4122.0,2.42599512]
[1760310970068,2.42555031,4122.8,4122.0,2.42599512]
[1760310970584,2.42555031,4122.8,4122.6,0.002]
[1760310970882,2.42559487,4122.7,4122.6,0.002]
[1760310971085,0.0093846,4122.0,4121.8,2.42607825]
[1760310971388,0.0093846,4122.0,4121.9,2.42606564]
[1760310971752,0.0093846,4122.0,4121.7,0.002]
[1760310971954,0.0093846,4122.0,4121.9,2.42606564]
[1760310972288,0.0093846,4122.0,4121.7,2.42818226]
[1760310972289,0.0093846,4122.0,4121.7,0.002]
[1760310972470,2.42607511,4121.9,4121.7,0.002]
[1760310972670,2.43540065,4122.0,4121.7,0.002]
[1760310973181,0.0093846,4122.0,4121.7,0.002]
[1760310974167,0.0093846,4122.0,4121.7,2.42816815]
[1760310974489,0.0093846,4122.0,4121.7,0.002]
[1760310975453,0.0093846,4122.0,4121.9,2.42606564]
[1760310975653,0.0093846,4122.0,4121.9,3.38826564]
[1760310976083,0.0093846,4122.0,4121.7,2.4281294]
[1760310976084,0.0093846,4122.0,4121.7,0.002]
[1760310976492,13.42998053,4123.1,4121.7,0.002]
[1760310976493,0.4454,4122.4,4121.7,0.002]
[1760310976678,2.3654,4122.4,4121.7,0.002]
[1760310976983,1.92,4122.4,4121.6,2.41881095]
[1760310977399,2.42578123,4122.4,4121.6,2.41881095]
[1760310977703,2.42584657,4122.3,4121.4,2.42633163]
[1760310977871,3.11566767,4122.3,4121.5,2.42629514]
[1760310978281,0.6898211,4122.3,4121.1,1e-08]
[1760310978488,2.42599851,4122.1,4121.3,2.42640833]
[1760310978797,2.42599851,4122.1,4121.2,2.42647407]
[1760310979494,2.4260139,4122.0,4121.1,2.42652926]
[1760310979694,2.42594225,4122.2,4121.4,2.42635456]
[1760310979998,0.12668401,4122.4,4121.2,2.42647772]
[1760310980297,0.12668401,4122.4,4121.3,0.3286]
[1760310980599,0.12668401,4122.4,4121.8,2.4261245]
[1760310981096,0.12668401,4122.4,4121.1,1e-08]
[1760310981263,0.12668401,4122.4,4122.2,2.42588908]
[1760310981459,0.12668401,4122.4,4122.2,2.75448908]
[1760310981665,0.12668401,4122.4,4121.1,0.32860001]
[1760310982297,4.3458336,4122.3,4121.4,2.42635528]
[1760310982460,4.3458336,4122.3,4121.5,2.42629472]
[1760310982664,1.92,4122.3,4121.6,2.42624223]
[1760310982876,1.92,4122.3,4121.8,2.42607701]
[1760310983271,1.92,4122.3,4121.9,2.42606041]
[1760310983504,1.92,4122.3,4122.1,2.42591932]
[1760310984304,0.12668401,4122.4,4122.2,2.42588908]
[1760310984474,0.12668401,4122.4,4122.3,2.42583024]
[1760310984674,2.42519673,4123.4,4122.5,2.42565579]
[1760310984885,0.12667383,4122.9,4122.3,2.42583024]
[1760310985196,0.12667383,4122.9,4122.6,2.42563673]
[1760310985569,0.12667383,4122.9,4122.7,2.42558426]
[1760310986103,0.12667383,4122.9,4122.8,0.1208]
[1760310987894,0.12667383,4122.9,4122.8,2.54633604]
[1760310988097,0.12667383,4122.9,4122.8,2.45412078]
[1760310988302,0.12667383,4122.9,4122.8,3.50853604]
[1760310988465,0.1208,4124.3,4122.8,3.50853604]
[1760310988466,0.1208,4124.8,4122.9,0.6336]
[1760310988665,0.12666164,4123.6,4123.5,2.42512428]
[1760310988897,0.1208,4124.8,4123.8,2.42492608]
[1760310989103,0.4454,4124.4,4123.5,0.1208]
[1760310989273,0.4454,4124.4,4119.7,1.00299999]
[1760310989274,2.42510296,4123.6,4122.7,2.4255924]
[1760310989621,0.001,4123.4,4122.9,2.42545795]
[1760310989762,0.001,4123.4,4123.1,0.6336]
[1760310989963,0.001,4123.4,4123.3,2.42524191]
[1760310990369,0.12666286,4123.9,4123.4,2.4251831]
[1760310990567,2.6501884,4125.8,4123.4,0.3276]
[1760310990900,0.12666754,4125.1,4123.8,0.6336]
[1760310991088,0.12666754,4125.1,4124.6,2.42447695]
[1760310991286,0.12666754,4125.1,4124.7,2.42441593]
[1760310991600,0.12666754,4125.1,4124.4,0.3276]
[1760310991767,0.12666754,4125.1,4124.5,0.3276]
[1760310991968,0.12666754,4125.1,4124.0,0.6336]
[1760310992172,0.12666754,4125.1,4124.4,2.42459113]
[1760310992499,2.04666754,4125.1,4124.0,0.6336]
[1760310993195,0.12666754,4125.1,4124.4,2.42458812]
[1760310993425,0.12666754,4125.1,4124.0,0.6336]
[1760310993629,0.12666754,4125.1,4124.6,2.42442773]
[1760310993791,0.12666754,4125.1,4124.0,0.3276]
[1760310993989,0.12666754,4125.1,4124.6,2.42446316]
[1760310994188,0.12666754,4125.1,4124.2,2.424689]
[1760310994418,0.12666754,4125.1,4124.3,0.6336]
[1760310994922,0.12666754,4125.1,4124.3,0.9612]
[1760310995891,0.12666754,4125.1,4124.5,0.6336]
[1760310996102,1e-08,4124.9,4124.5,0.6336]
[1760310996400,0.005,4125.9,4125.8,2.42377235]
[1760310996802,0.005,4125.9,4125.8,2.75137235]
[1760310998211,0.005,4125.9,4125.8,3.38497235]
[1760310999231,0.005,4125.9,4125.8,3.50577235]
[1760311001004,0.005,4125.9,4124.8,0.3276]
[1760311001200,0.005,4125.9,4125.7,2.75142859]
[1760311001401,0.005,4125.9,4125.7,0.3276]
[1760311002228,0.005,4125.9,4125.7,2.75142815]
[1760311002410,0.005,4125.9,4125.8,2.42377235]
[1760311002736,0.005,4125.9,4125.8,2.75137235]
[1760311003432,0.005,4125.9,4125.8,3.38497235]
[1760311005038,1e-08,4125.9,4125.8,3.38497235]
[1760311006402,1e-08,4125.9,4125.6,2.42386098]
[1760311006403,1e-08,4125.9,4125.3,0.3276]
[1760311007019,1e-08,4125.9,4125.6,2.42384619]
[1760311007420,1e-08,4125.9,4125.7,2.42382378]
[1760311007619,1e-08,4125.9,4125.0,2.42422883]
[1760311007825,1e-08,4125.9,4125.7,2.7514311]
[1760311008224,1e-08,4125.9,4125.6,2.42388337]
[1760311008550,0.00100001,4125.9,4125.6,2.42388337]
[1760311008734,0.00100001,4125.9,4125.7,2.42381779]
[1760311009124,0.00100001,4125.9,4125.7,2.75141779]
[1760311009442,0.00100001,4125.9,4125.1,0.3276]
[1760311009646,0.00100001,4125.9,4125.3,0.6336]
[1760311010219,0.00100001,4125.9,4125.5,2.42394364]
[1760311010420,0.00100001,4125.9,4125.5,0.6336]
[1760311010639,0.00100001,4125.9,4125.6,0.3276]
[1760311010947,0.00100001,4125.9,4125.7,0.3276]
[1760311011118,0.00100001,4125.9,4125.8,0.1208]
[1760311011442,0.00100001,4125.9,4125.8,0.4484]
[1760311012748,0.00100001,4125.9,4125.8,0.1208]
[1760311015317,0.00100001,4125.9,4125.8,0.4484]
[1760311020663,0.00100001,4125.9,4125.8,0.1208]
[1760311021132,0.00100001,4125.9,4125.8,0.4484]
[1760311022559,0.00100001,4125.9,4125.8,2.87217235]
[1760311022744,0.00100001,4125.9,4125.8,0.3276]
[1760311022936,0.00100001,4125.9,4124.8,0.002]
[1760311022937,0.00100001,4125.9,4125.2,2.42409676]
[1760311023665,0.00100001,4125.9,4124.9,0.3276]
[1760311023866,2.42377235,4125.8,4125.0,2.42423409]
[1760311024170,3.1435559,4125.8,4125.0,2.424235]
[1760311024539,2.42378476,4125.8,4125.0,2.424235]
[1760311024872,0.00100001,4125.9,4125.0,2.424235]
[1760311024873,0.00100001,4125.9,4125.2,2.42406864]
[1760311025868,2.42472296,4125.9,4125.2,2.42406864]
[1760311026071,2.42472296,4125.9,4125.1,2.42417119]
[1760311026257,0.00100001,4125.9,4124.9,0.3276]
[1760311026457,0.00100001,4125.9,4125.6,2.42384371]
[1760311026663,0.00100001,4125.9,4124.8,0.002]
[1760311026856,0.00100001,4125.9,4125.1,2.42418308]
[1760311027370,0.00100001,4125.9,4125.2,2.42410847]
[1760311027867,0.00100001,4125.9,4125.1,0.002]
[1760311028073,0.00100001,4125.9,4125.2,2.42407826]
[1760311028268,0.00100001,4125.9,4125.6,2.42388314]
[1760311028448,0.00100001,4125.9,4125.3,0.3276]
[1760311029277,0.00100001,4125.9,4125.5,2.42389807]
[1760311029654,0.00100001,4125.9,4125.6,2.42387238]
[1760311029871,0.00100001,4125.9,4125.4,0.3276]
[1760311030171,0.00100001,4125.9,4125.7,2.42381231]
[1760311030338,0.00100001,4125.9,4125.6,2.42386781]
[1760311030536,0.00100001,4125.9,4125.7,0.3276]
[1760311031378,0.00100001,4125.9,4125.5,2.42389935]
[1760311031573,0.00100001,4125.9,4125.6,0.3276]
[1760311031890,0.00100001,4125.9,4125.8,2.42377235]
[1760311032093,0.00100001,4125.9,4125.8,2.75137235]
[1760311032788,0.00100001,4125.9,4125.8,2.87217235]
[1760311032992,0.00100001,4125.9,4125.8,3.50577235]
[1760311035358,0.00100001,4125.9,4125.8,18.00577235]
[1760311035983,0.00100001,4125.9,4125.8,14.6208]
[1760311036170,0.00100001,4125.9,4125.8,17.37217235]
[1760311036992,0.00100001,4125.9,4125.8,14.9484]
[1760311037295,4.34378009,4125.8,4125.1,0.002]
[1760311037468,2.42399928,4125.5,4125.1,0.002]
[1760311037865,0.50335801,4125.7,4125.1,0.002]
[1760311038070,1.92,4125.6,4125.1,0.002]
[1760311038266,4.3438938,4125.6,4125.1,0.002]
[1760311038469,1.92,4125.6,4125.1,0.002]
[1760311038792,2.42335801,4125.7,4125.1,0.002]
[1760311039169,2.92719351,4125.7,4125.1,0.002]
[1760311039573,2.4240003,4125.5,4125.1,0.002]
[1760311039773,2.42389976,4125.6,4125.1,0.002]
[1760311039971,0.50335801,4125.7,4125.1,0.002]
[1760311040177,4.34377485,4125.8,4125.1,0.002]
[1760311041194,0.12768532,4125.9,4125.2,0.3276]
[1760311041363,0.12768532,4125.9,4125.7,2.42378061]
[1760311041558,0.12768532,4125.9,4125.6,2.42387767]
[1760311041761,0.12768532,4125.9,4125.7,14.5]
[1760311041991,2.88732798,4125.8,4125.1,0.002]
[1760311042223,1.00736751,4125.8,4125.1,0.002]
[1760311042364,2.4238311,4125.7,4125.1,0.002]
[1760311042559,1.92,4125.6,4125.1,0.002]
[1760311042759,2.42403812,4125.4,4125.1,0.002]
[1760311042986,1.92,4125.6,4125.1,0.002]
[1760311043266,2.42412489,4125.2,4125.1,0.002]
[1760311043486,2.20876249,4125.2,4125.1,0.002]
[1760311043690,5.09638738,4125.2,4125.1,0.002]
[1760311043891,2.67226249,4125.2,4125.1,0.002]
[1760311044099,4.63288738,4125.2,4125.1,0.002]
[1760311044887,1.92,4125.2,4125.1,0.002]
[1760311045388,4.34412489,4125.2,4125.1,0.002]
[1760311045592,4.80762489,4125.2,4125.1,0.002]
[1760311046182,4.34412489,4125.2,4125.1,0.002]
[1760311046396,1.92,4125.1,4124.4,2.42653807]
[1760311046591,2.42412489,4125.2,4124.6,0.002]
[1760311047186,2.42412489,4125.2,4124.8,0.1208]
[1760311047187,3.10093856,4125.2,4124.8,0.1208]
[1760311047391,1.92,4125.1,4124.8,14.6208]
[1760311047617,2.42418493,4125.1,4124.8,14.6208]
[1760311048109,1.92,4125.1,4124.8,14.6208]
[1760311048890,0.12768532,4125.9,4124.8,14.5]
[1760311049093,2.42388397,4125.7,4125.0,0.1208]
[1760311049304,2.42388397,4125.7,4125.4,0.1208]
[1760311049597,1.92,4125.6,4125.4,0.1208]
[1760311049821,0.46968693,4125.7,4125.4,0.1208]
[1760311050482,0.12768532,4125.9,4125.5,0.3276]
[1760311050683,0.12768532,4125.9,4125.8,0.1208]
[1760311051413,0.12768532,4125.9,4125.8,2.87217235]
[1760311051800,0.12768532,4125.9,4125.8,17.04457235]
[1760311052111,0.12768532,4125.9,4125.8,14.9484]
[1760311052330,0.12768532,4125.9,4125.8,14.6208]
[1760311052531,0.12768532,4125.9,4125.8,17.04457235]
[1760311052981,0.12768532,4125.9,4125.8,17.37217235]
[1760311053378,0.12768532,4125.9,4125.8,17.04457235]
[1760311053981,0.12768532,4125.9,4125.8,17.37217235]
[1760311055317,0.12768532,4125.9,4125.8,14.6208]
[1760311055522,0.12768532,4125.9,4125.8,17.04457235]
[1760311056335,0.12768532,4125.9,4125.8,14.6208]
[1760311056482,0.12768532,4125.9,4125.8,17.37217235]
[1760311057117,0.12768532,4125.9,4125.8,14.9484]
[1760311057716,0.12768532,4125.9,4125.8,14.6208]
[1760311059621,0.12768532,4125.9,4125.8,17.37217235]
[1760311061020,0.12768532,4125.9,4125.8,17.04457235]
[1760311061220,0.12768532,4125.9,4125.8,14.6208]
[1760311063128,0.12768532,4125.9,4125.8,17.04457235]
[1760311063304,0.12768532,4125.9,4125.8,17.37217235]
[1760311064434,0.12768532,4125.9,4125.8,14.6208]
[1760311066236,0.12768532,4125.9,4125.8,17.04457235]
[1760311066534,0.12768532,4125.9,4125.8,14.6208]
[1760311067441,0.12768532,4125.9,4125.8,0.1208]
[1760311067442,5.12739893,4125.9,4125.8,0.1208]
[1760311067609,2.42408256,4125.3,4124.5,0.002]
[1760311067805,2.42408256,4125.3,4124.5,2.42653565]
[1760311068008,1.92,4125.4,4124.6,14.502]
[1760311068009,2.42413847,4125.2,4124.6,14.502]
[1760311068306,2.42436604,4124.8,4124.6,14.502]
[1760311068547,2.86296604,4124.8,4124.7,0.1208]
[1760311068746,4.78296604,4124.8,4124.7,0.1208]
[1760311068931,1.92,4124.7,4124.6,0.002]
[1760311069132,3.27132104,4124.8,4124.6,0.002]
[1760311069133,2.3586,4124.8,4124.6,0.002]
[1760311069332,2.86296637,4124.8,4124.6,0.002]
[1760311069770,1.92,4124.7,4124.6,0.002]
[1760311070172,2.42441874,4124.7,4124.6,0.002]
[1760311070543,2.42436625,4124.8,4124.6,0.002]
[1760311070864,2.86301874,4124.7,4124.6,0.002]
[1760311071266,4.78301874,4124.7,4124.6,0.002]
[1760311072338,7.53976374,4124.7,4124.6,0.002]
[1760311073251,4.34477146,4124.1,4124.0,0.002]
[1760311073544,5.02171729,4124.1,4124.0,0.002]
[1760311073766,5.46031729,4124.1,4124.0,0.002]
[1760311075534,1.92,4124.1,4124.0,0.002]
[1760311075766,2.42453855,4124.5,4124.0,0.002]
[1760311075938,13.43926326,4125.4,4124.0,0.002]
[1760311076149,0.4386,4125.2,4124.4,2.54538972]
[1760311076361,2.42425132,4125.0,4124.7,0.1208]
[1760311076564,4.34425132,4125.0,4124.7,0.1208]
[1760311076786,2.42435996,4124.8,4124.7,0.1208]
[1760311076964,4.34435996,4124.8,4124.4,0.1208]
[1760311077175,2.42443061,4124.7,4124.5,14.5]
[1760311077493,1.92,4124.6,4124.5,14.5]
[1760311077778,2.4245363,4124.5,4124.4,0.1208]
[1760311077975,2.42477146,4124.1,4124.0,0.002]
[1760311078187,15.86403472,4124.1,4124.0,0.002]
[1760311078344,18.22263472,4124.1,4124.0,0.002]
[1760311078545,20.28736696,4124.1,4124.0,0.002]
[1760311079063,23.20221696,4124.1,4124.0,0.002]
[1760311079262,20.28736696,4124.1,4124.0,0.002]
[1760311080953,20.28736696,4124.1,4123.0,14.6208]
[1760311080954,6.819846,4124.0,4123.0,0.1208]
[1760311081154,1.92,4123.0,4122.1,0.005]
[1760311081456,2.42553604,4122.8,4122.2,14.5]
[1760311081663,1.92,4122.4,4122.1,0.005]
[1760311082193,0.4386,4122.7,4122.1,0.005]
[1760311082194,4.34565931,4122.6,4122.1,0.005]
[1760311082397,4.34588908,4122.2,4122.1,0.005]
[1760311082894,2.86448908,4122.2,4122.1,0.005]
[1760311083774,2.4261245,4121.8,4121.7,1e-08]
[1760311083973,2.4261245,4121.8,4117.8,2.42847992]
[1760311083974,0.11079999,4118.2,4118.1,2.43330431]
[1760311084362,0.11079999,4118.2,4118.1,16.93330431]
[1760311084568,2.42671325,4120.8,4119.5,2.42747599]
[1760311084768,2.42678676,4120.7,4119.5,2.42747599]
[1760311085067,2.39853868,4120.6,4119.7,2.42735752]
[1760311085386,0.60536008,4120.6,4119.8,14.5]
[1760311085596,0.60536008,4120.6,4119.8,16.9272941]
[1760311085813,0.1268214,4120.6,4119.8,14.5]
[1760311086113,0.1268214,4120.6,4120.5,2.42688994]
[1760311086313,0.2174,4121.9,4120.9,2.42665437]
[1760311086525,0.12679642,4121.6,4121.0,2.42654123]
[1760311086812,0.12679642,4121.6,4120.7,2.42671694]
[1760311086813,0.56539642,4121.6,4120.7,2.42676255]
[1760311087108,0.29915309,4121.5,4120.7,2.42676255]
[1760311087407,0.29915309,4121.5,4120.7,2.42675525]
[1760311087591,0.29915309,4121.5,4120.2,0.1471]
[1760311087813,0.12679642,4121.6,4121.1,2.42650893]
[1760311088095,0.12679642,4121.6,4121.5,2.4263011]
[1760311088602,0.12679642,4121.6,4121.5,2.7539011]
[1760311088799,0.005,4121.9,4121.5,0.3276]
[1760311088971,0.005,4121.9,4121.8,2.4261245]
[1760311089991,0.005,4121.9,4121.1,0.3276]
[1760311090181,0.005,4121.9,4121.1,2.4265248]
[1760311090384,0.24810139,4121.9,4120.5,0.3276]
[1760311090592,0.24810139,4121.9,4120.7,2.42676531]
[1760311090593,2.4261999,4121.7,4120.7,2.42676531]
[1760311091199,1.925,4121.9,4121.4,0.1208]
[1760311091200,2.42613365,4121.8,4121.4,0.1208]
[1760311091400,1.92,4121.7,4121.4,0.1208]
[1760311091599,2.42621991,4121.7,4121.4,0.1208]
[1760311091769,2.71229371,4121.6,4121.4,0.1208]
[1760311091964,0.4292,4121.5,4121.4,0.1208]
[1760311092382,2.3492,4121.5,4121.4,0.1208]
[1760311092578,2.3492,4121.5,4119.6,0.1471]
[1760311092579,0.4292,4121.5,4119.6,0.1471]
[1760311092790,1.92,4121.2,4120.1,2.42707159]
[1760311092998,2.42683163,4120.6,4119.6,0.1471]
[1760311093202,2.427035,4120.3,4119.2,2.42760831]
[1760311093512,2.427035,4120.3,4118.8,0.3276]
[1760311093513,2.42712658,4120.1,4118.8,0.3276]
[1760311093732,2.42706655,4120.3,4118.8,0.3276]
[1760311093875,1.92,4120.2,4119.3,2.42759594]
[1760311094072,0.72032001,4120.3,4118.8,0.3276]
[1760311094274,0.4292,4120.6,4118.8,0.3276]
[1760311094601,2.42689157,4120.5,4118.8,0.3276]
[1760311094845,0.4292,4120.6,4118.8,0.3276]
[1760311094976,0.4292,4121.1,4118.9,0.6336]
[1760311095319,0.4292,4121.0,4119.4,2.42748435]
[1760311095477,2.42690049,4120.5,4119.4,2.42748435]
[1760311095679,2.42695802,4120.4,4119.4,2.42748435]